lending/lending_fUSD_20250808
["ID","MTS","AMOUNT","RATE_DAILY","PERIOD"]
[377984421,1754649040077,-1258.39,0.00018768,2]
[377984422,1754649040086,-912.56,0.00018768,2]
[377984423,1754649040095,-702.26,0.00018768,2]
[377984424,1754649040104,-952.13,0.00018768,2]
[377984425,1754649040114,-400.0,0.00018768,2]
[377984426,1754649040123,-864.98,0.00018768,2]
[377984427,1754649040132,-1210.1,0.00018768,2]
[377984428,1754649040142,-1047.42,0.00018768,2]
[377984429,1754649040151,-513.48,0.00018768,2]
[377984430,1754649040160,-346.027573,0.00018768,2]
[377984431,1754649040169,-812.22,0.00018768,2]
[377984432,1754649040178,-400.0,0.00018768,2]
[377984433,1754649040188,-749.08,0.00018768,2]
[377984434,1754649040197,-643.88,0.00018768,2]
[377984435,1754649040206,-535.68,0.00018768,2]
[377984436,1754649040215,-752.17,0.00018768,2]
[377984437,1754649040224,-903.04,0.00018768,2]
[377984438,1754649040233,-487.43,0.00018768,2]
[377984439,1754649040242,-1071.86,0.00018768,2]
[377984440,1754649040251,-367.357884,0.00018768,2]
[377984441,1754649040261,-400.0,0.00018768,2]
[377984442,1754649040270,-516.57,0.00018768,2]
[377984443,1754649040279,-400.0,0.00018768,2]
[377984444,1754649040289,-915.11,0.00018768,2]
[377984445,1754649040298,-467.209805,0.00018768,2]
[377984446,1754649040307,-1362.49,0.00018768,2]
[377984447,1754649040317,-775.93,0.00018768,2]
[377984448,1754649040326,-434.48,0.00018768,2]
[377984449,1754649040335,-715.96,0.00018768,2]
[377984450,1754649040345,-942.62,0.00018768,2]
[377984451,1754649040355,-1117.02,0.00018768,2]
[377984452,1754649040364,-400.0,0.00018768,2]
[377984453,1754649040373,-492.58,0.00018768,2]
[377984454,1754649040383,-765.05,0.00018768,2]
[377984455,1754649040392,-400.0,0.00018768,2]
[377984456,1754649040401,-400.0,0.00018768,2]
[377984457,1754649040410,-400.0,0.00018768,2]
[377984458,1754649040419,-400.0,0.00018768,2]
[377984459,1754649040428,-622.68,0.00018768,2]
[377984460,1754649040437,-400.0,0.00018768,2]
[377984461,1754649040446,-902.71,0.00018768,2]
[377984462,1754649040456,-1082.26,0.00018768,2]
[377984463,1754649040465,-400.0,0.00018768,2]
[377984464,1754649040474,-1041.25,0.00018768,2]
[377984465,1754649040484,-400.0,0.00018768,2]
[377984466,1754649040493,-937.2,0.00018768,2]
[377984467,1754649040502,-1261.25,0.00018768,2]
[377984468,1754649040511,-483.6,0.00018768,2]
[377984469,1754649040521,-400.0,0.00018768,2]
[377984470,1754649040531,-920.0,0.00018768,2]
[377984471,1754649040540,-400.0,0.00018768,2]
[377984472,1754649040549,-160.0,0.00018768,2]
[377984473,1754649040558,-593.11,0.00018768,2]
[377984474,1754649040568,-515.94,0.00018768,2]
[377984475,1754649040578,-655.12,0.00018768,2]
[377984476,1754649040587,-400.0,0.00018768,2]
[377984477,1754649040602,-762.5,0.00018768,2]
[377984478,1754649040613,-400.0,0.00018768,2]
[377984479,1754649040623,-536.09,0.00018768,2]
[377984480,1754649040633,-1403.08,0.00018768,2]
[377984481,1754649040643,-940.95,0.00018768,2]
[377984482,1754649040652,-732.56,0.00018768,2]
[377984483,1754649040662,-836.61,0.00018768,2]
[377984484,1754649040673,-1726.2,0.00018768,2]
[377984485,1754649040684,-820.03,0.00018768,2]
[377984486,1754649040695,-1142.44,0.00018768,2]
[377984487,1754649040705,-1158.58,0.00018768,2]
[377984488,1754649040714,-1391.33,0.00018768,2]
[377984489,1754649040723,-581.76,0.00018768,2]
[377984490,1754649040732,-672.91,0.00018768,2]
[377984491,1754649040742,-896.67,0.00018768,2]
[377984492,1754649040751,-1468.38,0.00018768,2]
[377984493,1754649040761,-990.36,0.00018768,2]
[377984494,1754649040771,-746.34,0.00018768,2]
[377984495,1754649040781,-400.0,0.00018768,2]
[377984496,1754649040790,-876.7,0.00018768,2]
[377984497,1754649040800,-608.74,0.00018768,2]
[377984498,1754649040809,-697.53,0.00018768,2]
[377984499,1754649040819,-400.0,0.00018768,2]
[377984500,1754649040828,-571.47,0.00018768,2]
[377984501,1754649040837,-1609.26,0.00018768,2]
[377984502,1754649040847,-1528.34,0.00018768,2]
[377984503,1754649040856,-676.63,0.00018768,2]
[377984504,1754649040865,-400.0,0.00018768,2]
[377984505,1754649040875,-524.47,0.00018768,2]
[377984506,1754649040884,-493.61,0.00018768,2]
[377984507,1754649040894,-913.31,0.00018768,2]
[377984508,1754649040903,-504.98,0.00018768,2]
[377984509,1754649040913,-647.99,0.00018768,2]
[377984510,1754649040922,-1076.51,0.00018768,2]
[377984511,1754649040931,-772.48,0.00018768,2]
[377984512,1754649040941,-1068.42,0.00018768,2]
[377984513,1754649040951,-883.56,0.00018768,2]
[377984514,1754649040960,-400.0,0.00018768,2]
[377984515,1754649040970,-841.11,0.00018768,2]
[377984516,1754649040979,-541.56,0.00018768,2]
[377984517,1754649040988,-400.0,0.00018768,2]
[377984518,1754649040998,-905.53,0.00018768,2]
[377984519,1754649041007,-952.16,0.00018768,2]
[377984520,1754649041016,-1396.6,0.00018768,2]
[377984521,1754649041025,-813.74,0.00018768,2]
[377984522,1754649041035,-400.0,0.00018768,2]
[377984523,1754649041044,-400.0,0.00018768,2]
[377984524,1754649041054,-438.79,0.00018768,2]
[377984525,1754649041064,-992.06,0.00018768,2]
[377984526,1754649041073,-759.07,0.00018768,2]
[377984527,1754649041082,-595.24,0.00018768,2]
[377984528,1754649041091,-400.0,0.00018768,2]
[377984529,1754649041101,-400.0,0.00018768,2]
[377984530,1754649041110,-1116.62,0.00018768,2]
[377984531,1754649041119,-400.0,0.00018768,2]
[377984532,1754649041128,-1274.01,0.00018768,2]
[377984533,1754649041138,-421.8,0.00018768,2]
[377984534,1754649041147,-5550.44,0.00018768,2]
[377984535,1754649041156,-793.74,0.00018768,2]
[377984536,1754649041165,-586.01,0.00018768,2]
[377984537,1754649041174,-400.0,0.00018768,2]
[377984538,1754649041183,-400.0,0.00018768,2]
[377984539,1754649041192,-1128.44,0.00018768,2]
[377984540,1754649041201,-1071.17,0.00018768,2]
[377984541,1754649041211,-726.8,0.00018768,2]
[377984542,1754649041220,-1206.47,0.00018768,2]
[377984543,1754649041230,-400.0,0.00018768,2]
[377984544,1754649041239,-1503.74,0.00018768,2]
[377984545,1754649041248,-824.69,0.00018768,2]
[377984546,1754649041257,-1131.77,0.00018768,2]
[377984547,1754649041266,-1166.91,0.00018768,2]
[377984548,1754649041276,-1540.15,0.00018768,2]
[377984549,1754649041285,-400.0,0.00018768,2]
[377984550,1754649041294,-959.62,0.00018768,2]
[377984551,1754649041305,-400.0,0.00018768,2]
[377984552,1754649041314,-400.0,0.00018768,2]
[377984553,1754649041323,-828.91,0.00018768,2]
[377984554,1754649041333,-1685.44,0.00018768,2]
[377984555,1754649041343,-400.0,0.00018768,2]
[377984556,1754649041354,-400.0,0.00018768,2]
[377984557,1754649041364,-1473.79,0.00018768,2]
[377984558,1754649041374,-582.37,0.00018768,2]
[377984559,1754649041383,-400.0,0.00018768,2]
[377984560,1754649041393,-400.0,0.00018768,2]
[377984561,1754649041406,-509.48,0.00018768,2]
[377984562,1754649041416,-719.7,0.00018768,2]
[377984563,1754649041426,-400.0,0.00018768,2]
[377984564,1754649041436,-638.59,0.00018768,2]
[377984565,1754649041446,-1359.78,0.00018768,2]
[377984566,1754649041456,-493.61544104,0.00018768,2]
[377984567,1754649041466,-400.0,0.00018768,2]
[377984568,1754649041475,-475.37,0.00018768,2]
[377984569,1754649041485,-653.59,0.00018768,2]
[377984570,1754649041495,-400.0,0.00018768,2]
[377984571,1754649041504,-1225.95,0.00018768,2]
[377984572,1754649041514,-1292.13,0.00018768,2]
[377984573,1754649041528,-1116.56,0.00018768,2]
[377984574,1754649041538,-572.18,0.00018768,2]
[377984575,1754649041548,-981.07,0.00018768,2]
[377984576,1754649041558,-893.62,0.00018768,2]
[377984577,1754649041568,-1899.56,0.00018768,2]
[377984578,1754649041578,-718.29,0.00018768,2]
[377984579,1754649041588,-400.0,0.00018768,2]
[377984580,1754649041598,-400.0,0.00018768,2]
[377984581,1754649041608,-838.3,0.00018768,2]
[377984582,1754649041618,-1043.01,0.00018768,2]
[377984583,1754649041628,-400.0,0.00018768,2]
[377984584,1754649041638,-728.66,0.00018768,2]
[377984585,1754649041648,-444.29,0.00018768,2]
[377984586,1754649041658,-768.88,0.00018768,2]
[377984587,1754649041668,-743.53,0.00018768,2]
[377984588,1754649041678,-1029.66,0.00018768,2]
[377984589,1754649041688,-745.03,0.00018768,2]
[377984590,1754649041698,-965.4,0.00018768,2]
[377984591,1754649041708,-807.54,0.00018768,2]
[377984592,1754649041720,-400.0,0.00018768,2]
[377984593,1754649041730,-768.03,0.00018768,2]
[377984594,1754649041740,-400.0,0.00018768,2]
[377984595,1754649041751,-732.79,0.00018768,2]
[377984596,1754649041761,-639.77,0.00018768,2]
[377984597,1754649041772,-1733.2,0.00018768,2]
[377984598,1754649041782,-400.0,0.00018768,2]
[377984599,1754649041792,-1464.04,0.00018768,2]
[377984600,1754649041803,-400.0,0.00018768,2]
[377984601,1754649041813,-687.47,0.00018768,2]
[377984602,1754649041823,-400.0,0.00018768,2]
[377984603,1754649041834,-400.0,0.00018768,2]
[377984604,1754649041844,-2197.11,0.00018768,2]
[377984605,1754649041854,-400.0,0.00018768,2]
[377984606,1754649041863,-1073.92,0.00018768,2]
[377984607,1754649041873,-400.0,0.00018768,2]
[377984608,1754649041883,-710.59,0.00018768,2]
[377984609,1754649041892,-900.1,0.00018768,2]
[377984610,1754649041903,-400.0,0.00018768,2]
[377984611,1754649041915,-625.42,0.00018768,2]
[377984612,1754649041926,-926.27,0.00018768,2]
[377984613,1754649041936,-400.0,0.00018768,2]
[377984614,1754649041947,-1068.23,0.00018768,2]
[377984615,1754649041956,-1063.6,0.00018768,2]
[377984616,1754649041966,-457.73,0.00018768,2]
[377984617,1754649041976,-400.0,0.00018768,2]
[377984618,1754649041986,-458.65,0.00018768,2]
[377984619,1754649041995,-400.0,0.00018768,2]
[377984620,1754649042005,-400.0,0.00018768,2]
[377984621,1754649042014,-429.0,0.00018768,2]
[377984622,1754649042023,-1000.66,0.00018768,2]
[377984623,1754649042033,-796.59,0.00018768,2]
[377984624,1754649042043,-1043.83,0.00018768,2]
[377984625,1754649042054,-483.76,0.00018768,2]
[377984626,1754649042064,-400.0,0.00018768,2]
[377984627,1754649042074,-400.0,0.00018768,2]
[377984628,1754649042084,-400.0,0.00018768,2]
[377984629,1754649042093,-400.0,0.00018768,2]
[377984630,1754649042103,-751.27,0.00018768,2]
[377984631,1754649042112,-715.9,0.00018768,2]
[377984632,1754649042122,-1256.84,0.00018768,2]
[377984633,1754649042131,-400.0,0.00018768,2]
[377984634,1754649042141,-444.32,0.00018768,2]
[377984635,1754649042150,-400.0,0.00018768,2]
[377984636,1754649042160,-758.75,0.00018768,2]
[377984637,1754649042169,-400.0,0.00018768,2]
[377984638,1754649042178,-418.75,0.00018768,2]
[377984639,1754649042188,-400.0,0.00018768,2]
[377984640,1754649042199,-3718.22,0.00018768,2]
[377984642,1754649042209,-1320.81,0.00018768,2]
[377984644,1754649042219,-400.0,0.00018768,2]
[377984646,1754649042229,-1175.31,0.00018768,2]
[377984648,1754649042238,-1479.46,0.00018768,2]
[377984649,1754649042248,-762.9,0.00018768,2]
[377984650,1754649042258,-400.0,0.00018768,2]
[377984651,1754649042270,-707.89,0.00018768,2]
[377984652,1754649042279,-401.90704445,0.00018768,2]
[377984653,1754649042290,-400.0,0.00018768,2]
[377984654,1754649042299,-400.0,0.00018768,2]
[377984655,1754649042308,-1194.1,0.00018768,2]
[377984656,1754649042318,-435.56,0.00018768,2]
[377984657,1754649042327,-801.27,0.00018768,2]
[377984658,1754649042337,-400.0,0.00018768,2]
[377984659,1754649042347,-1053.46,0.00018768,2]
[377984660,1754649042357,-400.0,0.00018768,2]
[377984662,1754649042367,-827.41,0.00018768,2]
[377984663,1754649042376,-400.0,0.00018768,2]
[377984664,1754649042386,-1278.16,0.00018768,2]
[377984666,1754649042395,-1297.73,0.00018768,2]
[377984667,1754649042405,-400.0,0.00018768,2]
[377984668,1754649042415,-999.8,0.00018768,2]
[377984669,1754649042425,-609.81,0.00018768,2]
[377984670,1754649042434,-400.0,0.00018768,2]
[377984671,1754649042444,-1301.92,0.00018768,2]
[377984672,1754649042454,-400.0,0.00018768,2]
[377984673,1754649042464,-501.66,0.00018768,2]
[377984674,1754649042473,-500.91,0.00018768,2]
[377984675,1754649042483,-1089.11,0.00018768,2]
[377984676,1754649042492,-898.57,0.00018768,2]
[377984677,1754649042502,-400.0,0.00018768,2]
[377984678,1754649042513,-1643.17,0.00018768,2]
[377984679,1754649042527,-400.0,0.00018768,2]
[377984680,1754649042538,-400.0,0.00018768,2]
[377984681,1754649042548,-400.0,0.00018768,2]
[377984682,1754649042557,-400.0,0.00018768,2]
[377984683,1754649042569,-400.0,0.00018768,2]
[377984684,1754649042580,-777.78,0.00018768,2]
[377984685,1754649042592,-755.09,0.00018768,2]
[377984686,1754649042602,-777.23,0.00018768,2]
[377984687,1754649042612,-461.4,0.00018768,2]
[377984688,1754649042623,-569.73,0.00018768,2]
[377984689,1754649042634,-400.0,0.00018768,2]
[377984690,1754649042644,-400.0,0.00018768,2]
[377984691,1754649042654,-444.74,0.00018768,2]
[377984692,1754649042664,-500.0,0.00018768,2]
[377984693,1754649042673,-659.24,0.00018768,2]
[377984694,1754649042684,-1370.43,0.00018768,2]
[377984695,1754649042694,-488.92,0.00018768,2]
[377984696,1754649042704,-911.41,0.00018768,2]
[377984697,1754649042714,-405.3,0.00018768,2]
[377984698,1754649042724,-400.0,0.00018768,2]
[377984700,1754649042936,-1582.86,0.00018768,2]
[377984701,1754649042958,-755.47,0.00018768,2]
[377984702,1754649042968,-1000.0,0.00018768,2]
[377984703,1754649042978,-1489.95,0.00018768,2]
[377984704,1754649042988,-1472.76,0.00018768,2]
[377984705,1754649042998,-1916.7,0.00018768,2]
[377984706,1754649043007,-400.0,0.00018768,2]
[377984707,1754649043017,-400.0,0.00018769,2]
[377984708,1754649043028,-524.42367307,0.00018769,2]
[377984709,1754649043038,-401.60996204,0.00018769,2]
[377984710,1754649043048,-400.0,0.00018769,2]
[377984711,1754649043058,-400.0,0.00018769,2]
[377984712,1754649043067,-400.0,0.00018769,2]
[377984713,1754649043077,-3683.93,0.00018769,2]
[377984714,1754649043087,-502.23402664,0.00018769,2]
[377984715,1754649043098,-400.0,0.00018769,2]
[377984716,1754649043108,-400.0,0.00018769,2]
[377984717,1754649043117,-400.0,0.00018769,2]
[377984718,1754649043127,-400.0,0.00018769,2]
[377984719,1754649043137,-400.0,0.00018769,2]
[377984720,1754649043147,-400.0,0.00018769,2]
[377984721,1754649043157,-626.89,0.00018769,2]
[377984722,1754649043166,-400.0,0.00018769,2]
[377984723,1754649043176,-400.0,0.00018769,2]
[377984724,1754649043186,-400.0,0.00018769,2]
[377984725,1754649043195,-466.39,0.00018769,2]
[377984726,1754649043206,-418.63,0.00018769,2]
[377984727,1754649043217,-400.0,0.00018769,2]
[377984728,1754649043228,-400.0,0.00018769,2]
[377984729,1754649043238,-400.0,0.00018769,2]
[377984730,1754649043248,-400.0,0.00018769,2]
[377984731,1754649043258,-400.0,0.00018769,2]
[377984732,1754649043268,-605.84,0.00018769,2]
[377984733,1754649043278,-401.79878862,0.00018769,2]
[377984734,1754649043288,-400.56930366,0.00018769,2]
[377984735,1754649043297,-400.0,0.00018769,2]
[377984736,1754649043307,-784.15,0.00018769,2]
[377984737,1754649043318,-401.01673457,0.00018769,2]
[377984738,1754649043328,-400.0,0.00018769,2]
[377984739,1754649043338,-400.0,0.00018769,2]
[377984740,1754649043349,-400.0,0.00018769,2]
[377984741,1754649043358,-400.92508152,0.00018769,2]
[377984742,1754649043368,-400.0,0.00018769,2]
[377984743,1754649043377,-501.22948664,0.00018769,2]
[377984744,1754649043386,-850.67,0.00018769,2]
[377984745,1754649043396,-400.0,0.00018769,2]
[377984746,1754649043406,-400.83944835,0.00018769,2]
[377984747,1754649043416,-400.0,0.00018769,2]
[377984748,1754649043425,-400.0,0.00018769,2]
[377984749,1754649043435,-509.65,0.00018769,2]
[377984750,1754649043445,-648.91,0.00018769,2]
[377984751,1754649043455,-400.0,0.00018769,2]
[377984752,1754649043464,-803.23,0.00018769,2]
[377984753,1754649043474,-400.0,0.00018769,2]
[377984754,1754649043483,-400.0,0.00018769,2]
[377984755,1754649043493,-400.0,0.00018769,2]
[377984756,1754649043502,-400.0,0.00018769,2]
[377984757,1754649043512,-581.29,0.00018769,2]
[377984758,1754649043524,-401.37318099,0.00018769,2]
[377984759,1754649043533,-401.2783173,0.00018769,2]
[377984760,1754649043542,-400.0,0.00018769,2]
[377984761,1754649043552,-701.85,0.00018769,2]
[377984762,1754649043561,-758.73,0.00018769,2]
[377984763,1754649043572,-400.0,0.00018769,2]
[377984764,1754649043582,-400.0,0.00018769,2]
[377984765,1754649043592,-783.62,0.00018769,2]
[377984766,1754649043606,-400.0,0.00018769,2]
[377984767,1754649043616,-433.66,0.00018769,2]
[377984768,1754649043626,-406.89054954,0.00018769,2]
[377984769,1754649043636,-400.0,0.00018769,2]
[377984770,1754649043646,-459.04,0.00018769,2]
[377984771,1754649043655,-487.56,0.00018769,2]
[377984772,1754649043664,-400.0,0.00018769,2]
[377984773,1754649043674,-534.59,0.00018769,2]
[377984774,1754649043683,-920.73,0.00018769,2]
[377984775,1754649043693,-400.0,0.00018769,2]
[377984776,1754649043703,-400.0,0.00018769,2]
[377984777,1754649043712,-400.0,0.00018769,2]
[377984778,1754649043722,-400.0,0.00018769,2]
[377984779,1754649043731,-400.0,0.00018769,2]
[377984780,1754649043741,-400.0,0.00018769,2]
[377984781,1754649043750,-400.0,0.00018769,2]
[377984782,1754649043760,-400.0,0.00018769,2]
[377984783,1754649043769,-400.0,0.00018769,2]
[377984784,1754649043779,-663.9,0.00018769,2]
[377984785,1754649043788,-400.0,0.00018769,2]
[377984786,1754649043798,-400.0,0.00018769,2]
[377984787,1754649043808,-410.85715683,0.00018769,2]
[377984788,1754649043817,-287.33031158,0.00018769,2]
[377984789,1754649043826,-400.0,0.00018769,2]
[377984790,1754649043836,-400.0,0.00018769,2]
[377984791,1754649043846,-400.0,0.00018769,2]
[377984792,1754649043857,-298.36335469,0.00018769,2]
[377984793,1754649043867,-400.0,0.00018769,2]
[377984794,1754649043877,-400.0,0.00018769,2]
[377984795,1754649043887,-870.4,0.00018769,2]
[377984796,1754649043897,-400.0,0.00018769,2]
[377984797,1754649043907,-400.0,0.00018769,2]
[377984798,1754649043917,-400.0,0.00018769,2]
[377984799,1754649043927,-501.92301324,0.00018769,2]
[377984800,1754649043936,-405.2877487,0.00018769,2]
[377984801,1754649043946,-400.0,0.00018769,2]
[377984802,1754649043955,-1127.63,0.00018769,2]
[377984803,1754649043965,-400.0,0.00018769,2]
[377984804,1754649043975,-400.0,0.00018769,2]
[377984805,1754649043985,-400.0,0.00018769,2]
[377984806,1754649043995,-400.0,0.00018769,2]
[377984807,1754649044004,-400.0,0.00018769,2]
[377984808,1754649044014,-400.0,0.00018769,2]
[377984809,1754649044023,-400.63951715,0.00018769,2]
[377984810,1754649044033,-400.0,0.00018769,2]
[377984811,1754649044042,-400.0,0.00018769,2]
[377984812,1754649044052,-400.0,0.00018769,2]
[377984813,1754649044062,-400.0,0.00018769,2]
[377984814,1754649044072,-529.19490171,0.00018769,2]
[377984815,1754649044082,-960.72,0.00018769,2]
[377984816,1754649044092,-403.49412652,0.00018769,2]
[377984817,1754649044102,-6732.31,0.00018769,2]
[377984818,1754649044111,-732.14,0.00018769,2]
[377984819,1754649044122,-794.14,0.00018769,2]
[377984820,1754649044131,-400.0,0.00018769,2]
[377984821,1754649044141,-402.48722525,0.00018769,2]
[377984822,1754649044150,-992.28,0.00018769,2]
[377984823,1754649044159,-400.0,0.00018769,2]
[377984824,1754649044169,-400.0,0.00018769,2]
[377984825,1754649044178,-427.93123232,0.00018769,2]
[377984826,1754649044187,-400.0,0.00018769,2]
[377984827,1754649044197,-400.0,0.00018769,2]
[377984828,1754649044206,-400.0,0.00018769,2]
[377984829,1754649044216,-400.0,0.00018769,2]
[377984830,1754649044225,-450.01,0.00018769,2]
[377984831,1754649044234,-400.0,0.00018769,2]
[377984832,1754649044243,-403.50459426,0.00018769,2]
[377984833,1754649044252,-400.0,0.00018769,2]
[377984834,1754649044262,-407.8588268,0.00018769,2]
[377984835,1754649044271,-400.0,0.00018769,2]
[377984836,1754649044281,-400.0,0.00018769,2]
[377984837,1754649044290,-405.68108397,0.00018769,2]
[377984838,1754649044300,-412.01913743,0.00018769,2]
[377984839,1754649044309,-400.0,0.00018769,2]
[377984840,1754649044318,-413.59624561,0.00018769,2]
[377984841,1754649044328,-1436.7,0.00018769,2]
[377984842,1754649044337,-400.0,0.00018769,2]
[377984843,1754649044347,-501.36525578,0.00018769,2]
[377984844,1754649044357,-475.41,0.00018769,2]
[377984845,1754649044366,-400.0,0.00018769,2]
[377984846,1754649044376,-400.29256987,0.00018769,2]
[377984847,1754649044386,-408.08949889,0.00018769,2]
[377984848,1754649044395,-400.0,0.00018769,2]
[377984849,1754649044405,-400.0,0.00018769,2]
[377984850,1754649044415,-831.91,0.00018769,2]
[377984851,1754649044424,-407.04473565,0.00018769,2]
[377984852,1754649044434,-408.44848856,0.00018769,2]
[377984853,1754649044443,-427.57705641,0.00018769,2]
[377984854,1754649044454,-1680.58,0.00018769,2]
[377984855,1754649044463,-403.25542919,0.00018769,2]
[377984856,1754649044473,-400.0,0.00018769,2]
[377984857,1754649044482,-400.0,0.00018769,2]
[377984858,1754649044491,-400.0,0.00018769,2]
[377984859,1754649044501,-683.48,0.00018769,2]
[377984860,1754649044510,-406.23924347,0.00018769,2]
[377984861,1754649044522,-1093.46,0.00018769,2]
[377984862,1754649044533,-400.0,0.00018769,2]
[377984863,1754649044542,-400.0,0.00018769,2]
[377984864,1754649044552,-407.03461437,0.00018769,2]
[377984865,1754649044563,-400.0,0.00018769,2]
[377984866,1754649044572,-400.0,0.00018769,2]
[377984867,1754649044581,-400.0,0.00018769,2]
[377984868,1754649044591,-404.29559813,0.00018769,2]
[377984869,1754649044603,-400.0,0.00018769,2]
[377984870,1754649044613,-256.82441936,0.00018769,2]
[377984871,1754649044623,-400.0,0.00018769,2]
[377984872,1754649044633,-402.31352467,0.00018769,2]
[377984873,1754649044642,-400.0,0.00018769,2]
[377984874,1754649044652,-505.55938102,0.00018769,2]
[377984875,1754649044662,-400.0,0.00018769,2]
[377984876,1754649044671,-400.0,0.00018769,2]
[377984877,1754649044681,-949.13,0.00018769,2]
[377984878,1754649044691,-546.53086013,0.00018769,2]
[377984879,1754649044700,-400.0,0.00018769,2]
[377984880,1754649044710,-400.0,0.00018769,2]
[377984881,1754649044720,-413.9,0.00018769,2]
[377984882,1754649044729,-400.0,0.00018769,2]
[377984883,1754649044739,-415.72754302,0.00018769,2]
[377984884,1754649044748,-400.0,0.00018769,2]
[377984885,1754649044757,-400.0,0.00018769,2]
[377984886,1754649044767,-400.0,0.00018769,2]
[377984887,1754649044776,-1808.67,0.00018769,2]
[377984888,1754649044786,-400.0,0.00018769,2]
[377984889,1754649044795,-1560.97,0.00018769,2]
[377984890,1754649044805,-965.38,0.00018769,2]
[377984891,1754649044814,-400.0,0.00018769,2]
[377984892,1754649044824,-400.0,0.00018769,2]
[377984893,1754649044836,-905.41,0.00018769,2]
[377984894,1754649044846,-400.0,0.00018769,2]
[377984895,1754649044856,-646.67,0.00018769,2]
[377984896,1754649044865,-400.0,0.00018769,2]
[377984897,1754649044875,-400.0,0.00018769,2]
[377984898,1754649044885,-400.0,0.00018769,2]
[377984899,1754649044895,-1069.74,0.00018769,2]
[377984900,1754649044905,-1017.72,0.00018769,2]
[377984901,1754649044915,-400.0,0.00018769,2]
[377984902,1754649044924,-400.0,0.00018769,2]
[377984903,1754649044934,-400.0,0.00018769,2]
[377984904,1754649044943,-400.0,0.00018769,2]
[377984905,1754649044953,-1015.55,0.00018769,2]
[377984906,1754649044962,-400.0,0.00018769,2]
[377984907,1754649044972,-400.87803805,0.00018769,2]
[377984908,1754649044981,-400.0,0.00018769,2]
[377984909,1754649044991,-1275.35,0.00018769,2]
[377984910,1754649045000,-2527.56,0.00018769,2]
[377984911,1754649045010,-407.41713913,0.00018769,2]
[377984912,1754649045019,-400.0,0.00018769,2]
[377984913,1754649045029,-400.0,0.00018769,2]
[377984914,1754649045039,-400.0,0.00018769,2]
[377984915,1754649045048,-400.0,0.00018769,2]
[377984916,1754649045058,-400.0,0.00018769,2]
[377984917,1754649045068,-622.14,0.00018769,2]
[377984918,1754649045077,-484.21,0.00018769,2]
[377984919,1754649045087,-702.82,0.00018769,2]
[377984920,1754649045096,-1161.48,0.00018769,2]
[377984921,1754649045106,-400.0,0.00018769,2]
[377984922,1754649045115,-1455.86,0.00018769,2]
[377984923,1754649045125,-415.82,0.00018769,2]
[377984924,1754649045134,-917.24,0.00018769,2]
[377984925,1754649045144,-1293.46,0.00018769,2]
[377984926,1754649045154,-400.0,0.00018769,2]
[377984927,1754649045163,-400.0,0.00018769,2]